bitfinex/quotes_SOLUSD_20250930
["timestamp","ask_amount","ask_price","bid_price","bid_amount"]
[1759234562791,7.07599412,206.93,206.9,0.72]
[1759234563003,7.07599412,206.93,206.91,13.59559401]
[1759234565221,5.49819,206.92,206.88,4.8336324]
[1759234565512,2.2434216,206.92,206.9,13.59559401]
[1759234565908,2.2434216,206.92,206.9,0.72]
[1759234566313,2.2434216,206.92,206.91,13.59559401]
[1759234566521,6.18758636,206.92,206.85,18.52996936]
[1759234566707,2.2434216,206.91,206.86,0.72]
[1759234567216,2.2434216,206.89,206.85,13.69559401]
[1759234567433,2.2434216,206.89,206.87,13.59559401]
[1759234567599,5.4973512,206.88,206.85,13.69559401]
[1759234567921,16.9157684,206.91,206.85,13.69559401]
[1759234567922,38.5728009,206.92,206.87,13.59559401]
[1759234568098,5.49738859,206.91,206.88,0.72]
[1759234568407,3.25396699,206.9,206.86,13.59559401]
[1759234568721,2.2434216,206.91,206.87,0.72]
[1759234568922,3.25286081,206.9,206.87,0.72]
[1759234569120,2.2434216,206.91,206.86,13.59559401]
[1759234569326,3.25157855,206.9,206.88,0.72]
[1759234569509,7.07644844,206.91,206.87,13.59559401]
[1759234569821,2.2434216,206.91,206.88,0.72]
[1759234570834,82.5434216,206.91,206.88,0.72]
[1759234572021,2.2434216,206.9,206.87,13.59559401]
[1759234572222,2.2434216,206.9,206.87,14.31559401]
[1759234573336,7.07668062,206.9,206.87,14.31559401]
[1759234578240,2.2434216,206.89,206.87,13.59559401]
[1759234578647,2.2434216,206.89,206.87,14.26559401]
[1759234578848,2.2434216,206.88,206.87,14.26559401]
[1759234579143,2.2434216,206.88,206.86,13.59559401]
[1759234579342,2.2434216,206.87,206.86,14.26559401]
[1759234579739,2.2434216,206.88,206.86,14.26559401]
[1759234579931,2.2434216,206.88,206.87,0.67]
[1759234581235,2.9034216,206.88,206.85,13.69559401]
[1759234581434,2.2434216,206.86,206.85,13.69559401]
[1759234581634,2.2434216,206.86,206.85,0.77]
[1759234583944,85.79354133,206.89,206.85,14.36559401]
[1759234584148,85.79354133,206.89,206.86,13.59559401]
[1759234584350,85.13354133,206.89,206.86,13.59559401]
[1759234584648,80.3,206.89,206.86,13.59559401]
[1759234585070,85.13348682,206.89,206.86,13.59559401]
[1759234585235,2.2434216,206.87,206.86,13.59559401]
[1759234585430,80.3,206.89,206.86,14.26559401]
[1759234585670,80.3,206.89,206.87,0.67]
[1759234586247,80.3,206.89,206.86,13.59559401]
[1759234586438,2.2434216,206.88,206.87,14.26559401]
[1759234587170,80.3,206.89,206.87,14.26559401]
[1759234587354,2.2434216,206.88,206.87,13.59559401]
[1759234587977,2.2434216,206.88,206.87,14.26559401]
[1759234588960,8.07847912,206.91,206.87,14.26559401]
[1759234589262,2.2434216,206.88,206.87,14.26559401]
[1759234591969,3.24538141,206.9,206.87,19.0995477]
[1759234592176,2.2434216,206.89,206.87,18.4295477]
[1759234592670,2.2434216,206.89,206.88,0.67]
[1759234593973,2.2434216,206.91,206.89,13.59559401]
[1759234594146,2.2434216,206.91,206.9,14.26559401]
[1759234594848,2.2434216,206.91,206.9,13.59559401]
[1759234596268,1.43771155,206.91,206.9,13.59559401]
[1759234599272,4.68639445,206.91,206.9,13.59559401]
[1759234602355,4.68639445,206.91,206.9,14.25559401]
[1759234604966,4.68639445,206.91,206.9,13.59559401]
[1759234606599,4.68639445,206.91,206.9,14.25559401]
[1759234606893,3.2486829,206.91,206.9,19.08884678]
[1759234607066,0.66,206.99,206.9,19.08884678]
[1759234607067,1.43771155,206.98,206.91,13.59559401]
[1759234607267,3.2585923,206.97,206.93,13.59559401]
[1759234607477,3.2585923,206.96,206.95,13.59559401]
[1759234607683,3.2585923,206.96,206.95,14.25559401]
[1759234608987,1.43771155,207.0,206.97,13.59559401]
[1759234609194,4.06085473,207.02,206.98,14.25559401]
[1759234609195,3.25824322,206.99,206.98,14.25559401]
[1759234610595,3.25824322,206.99,206.98,13.59559401]
[1759234610799,3.25824322,206.99,206.98,14.25559401]
[1759234611976,3.25824322,206.99,206.98,13.59559401]
[1759234613482,3.91824322,206.99,206.98,13.59559401]
[1759234613688,10.18710603,206.99,206.95,13.59559401]
[1759234613996,1.43771155,206.97,206.94,13.59559401]
[1759234614206,1.43771155,206.97,206.96,13.59559401]
[1759234614374,4.68999093,206.97,206.96,13.59559401]
[1759234614573,3.25227938,206.97,206.96,13.59559401]
[1759234616604,3.25227938,206.97,206.96,0.66]
[1759234616788,3.25227938,207.0,206.96,0.66]
[1759234616988,3.25227938,206.99,206.96,0.66]
[1759234617291,3.25227938,206.98,206.97,18.42721211]
[1759234617492,1.43771155,207.02,206.97,18.42721211]
[1759234617493,3.25227938,207.01,206.98,13.59559401]
[1759234617699,3.25227938,207.0,206.98,14.25559401]
[1759234617911,3.25227938,206.99,206.98,14.25559401]
[1759234618302,3.25227938,207.01,206.98,14.25559401]
[1759234618508,3.25227938,207.0,206.99,0.66]
[1759234618907,3.25227938,207.0,206.97,13.59559401]
[1759234619116,3.25227938,206.99,206.98,0.66]
[1759234620116,3.25227938,206.99,206.98,5.49138467]
[1759234620412,4.68999093,207.02,206.99,13.59559401]
[1759234620614,3.25227938,207.01,207.0,0.66]
[1759234620789,3.25227938,207.01,207.0,14.25559401]
[1759234621103,3.25227938,207.03,207.01,13.59559401]
[1759234621304,3.25227938,207.02,207.01,13.59559401]
[1759234621507,4.68999093,207.05,206.99,13.59559401]
[1759234621708,3.25227938,207.04,207.01,13.59559401]
[1759234621886,3.25227938,207.03,207.02,14.25559401]
[1759234622087,3.25227938,207.04,207.02,14.25559401]
[1759234622393,3.25227938,207.04,207.03,0.66]
[1759234622916,4.68999093,207.04,207.03,0.66]
[1759234623121,4.68999093,207.04,206.97,32.878694]
[1759234623122,5.34999093,207.04,206.99,13.59559401]
[1759234623313,1.43771155,207.01,206.99,13.59559401]
[1759234623622,1.43771155,207.01,206.99,14.25559401]
[1759234623820,2.09771155,207.0,206.97,13.59559401]
[1759234624006,1.43771155,206.98,206.97,13.59559401]
[1759234624211,1.43771155,206.98,206.96,13.59559401]
[1759234624408,3.24716259,207.02,206.96,13.59559401]
[1759234624619,1.43771155,206.97,206.96,13.59559401]
[1759234624915,1.43771155,206.97,206.91,12.08225126]
[1759234624916,1.43771155,206.97,206.92,0.66]
[1759234625123,1.43771155,206.94,206.93,14.25559401]
[1759234629201,1.43771155,206.95,206.93,14.25559401]
[1759234629899,1.43771155,206.95,206.93,13.59559401]
[1759234630408,1.43771155,206.96,206.94,0.66]
[1759234630604,80.3,206.99,206.93,18.42805481]
[1759234630801,1.43771155,206.98,206.96,13.59559401]
[1759234630996,80.3,206.99,206.97,0.66]
[1759234631198,12.07797572,207.06,206.95,13.59559401]
[1759234631199,1.43771155,207.01,206.98,0.66]
[1759234631412,4.82953536,207.06,206.99,13.59559401]
[1759234631596,1.43771155,207.05,207.01,13.59559401]
[1759234631810,1.43771155,207.05,207.02,0.66]
[1759234632012,1.43771155,207.05,206.99,13.59559401]
[1759234632214,1.43771155,207.05,207.04,13.59559401]
[1759234632522,4.82901607,207.09,207.04,13.59559401]
[1759234632725,4.82901607,207.09,206.98,33.76]
[1759234632726,1.43771155,207.07,207.06,13.59559401]
[1759234633598,1.43771155,207.07,207.05,13.59559401]
[1759234633808,1.43771155,207.07,207.06,0.69]
[1759234634719,33.76,207.1,207.06,0.69]
[1759234634926,1.43771155,207.09,207.08,13.59559401]
[1759234635122,1.43771155,207.11,207.08,14.28559401]
[1759234635325,1.43771155,207.11,207.1,13.59559401]
[1759234635833,1.43771155,207.11,207.1,0.69]
[1759234636123,1.43771155,207.11,207.04,13.59559401]
[1759234636124,1.43771155,207.11,207.08,0.69]
[1759234636623,1.43771155,207.11,207.04,13.59559401]
[1759234636835,1.43771155,207.11,207.1,13.59559401]
[1759234638026,0.2,207.13,207.11,13.59559401]
[1759234638208,1.63771155,207.13,207.11,14.27559401]
[1759234638604,0.2,207.13,207.12,14.27559401]
[1759234639109,1.63771155,207.13,207.12,13.59559401]
[1759234642231,6.46559741,207.13,207.12,13.59559401]
[1759234647033,147.25644361,207.13,207.08,13.59559401]
[1759234647227,1.43771155,207.09,207.08,13.59559401]
[1759234648122,6.26652993,207.09,207.08,13.59559401]
[1759234652231,18.3385759,207.09,207.04,0.68]
[1759234652434,1.43771155,207.05,207.04,14.27559401]
[1759234653057,80.3,207.08,207.05,13.59559401]
[1759234653343,1.43771155,207.07,207.06,0.68]
[1759234654220,85.12913265,207.08,207.07,13.59559401]
[1759234654420,86.5668442,207.08,207.07,14.27559401]
[1759234655435,86.5668442,207.08,207.03,4.83020278]
[1759234655436,86.5668442,207.08,207.05,0.68]
[1759234655611,86.5668442,207.08,207.07,13.59559401]
[1759234656250,87.37223302,207.08,207.07,13.59559401]
[1759234656939,87.37223302,207.08,207.05,0.68]
[1759234657117,87.37223302,207.08,207.02,4.83040076]
[1759234657118,87.37223302,207.08,207.03,13.59559401]
[1759234657315,2.24310037,207.05,207.03,13.59559401]
[1759234657741,2.24310037,207.05,207.04,14.27559401]
[1759234658238,85.12913265,207.08,207.05,13.59559401]
[1759234658440,2.24310037,207.06,207.04,13.59559401]
[1759234658626,2.24310037,207.05,207.04,13.59559401]
[1759234659031,2.24310037,207.05,207.04,14.27559401]
[1759234659237,85.12913265,207.08,207.04,14.27559401]
[1759234659426,2.24310037,207.05,207.04,14.27559401]
[1759234659824,7.0730615,207.05,207.03,13.59559401]
[1759234660021,2.24310037,207.04,207.03,13.59559401]
[1759234660741,2.24310037,207.04,206.99,13.59559401]
[1759234661047,2.24310037,207.01,207.0,0.68]
[1759234661932,12.0739904,207.06,207.01,13.59559401]
[1759234661933,2.24310037,207.02,207.01,13.59559401]
[1759234662130,2.24310037,207.02,207.01,14.30559401]
[1759234662335,2.24310037,207.04,207.01,14.30559401]
[1759234662652,2.24310037,207.04,207.02,0.71]
[1759234662853,2.24310037,207.03,207.02,0.71]
[1759234663038,2.24310037,207.03,207.02,13.59559401]
[1759234663526,2.24310037,207.03,207.02,14.30559401]
[1759234664846,4.82955305,207.06,207.03,13.59559401]
[1759234665028,2.24310037,207.04,207.03,13.59559401]
[1759234665349,2.24310037,207.04,207.02,4.83041056]
[1759234665551,2.24310037,207.04,207.03,0.71]
[1759234666553,2.24310037,207.04,207.03,5.54021784]
[1759234666758,2.24310037,207.05,207.03,19.13581185]
[1759234666941,2.24310037,207.05,207.04,0.71]
[1759234667129,82.54310037,207.07,207.05,13.59559401]
[1759234667336,82.54310037,207.07,207.06,0.71]
[1759234667652,82.54310037,207.07,207.06,14.30559401]
[1759234667852,82.54310037,207.07,207.06,13.59559401]
[1759234668156,87.37238515,207.07,207.06,13.59559401]
[1759234669449,87.37238515,207.07,206.99,32.87746825]
[1759234669450,19.3255971,207.07,207.0,0.71]
[1759234669633,17.08249673,207.07,207.01,13.59559401]
[1759234669828,17.08249673,207.07,207.0,13.59559401]
[1759234670036,17.08249673,207.07,207.01,0.71]
[1759234670736,2.24310037,207.02,207.01,0.71]
[1759234671291,2.24310037,207.03,207.01,14.30559401]
[1759234671553,2.24310037,207.03,207.02,0.71]
[1759234671756,4.82955468,207.06,207.03,13.59559401]
[1759234671956,2.24310037,207.04,207.03,14.30559401]
[1759234673558,2.24310037,207.04,207.01,14.30559401]
[1759234673855,2.24310037,207.02,207.01,13.59559401]
[1759234674252,2.24310037,207.02,207.01,14.30559401]
[1759234674654,2.24310037,207.03,207.01,14.30559401]
[1759234674854,2.24310037,207.03,207.02,0.71]
[1759234679286,3.2421019,207.04,207.03,13.59559401]
[1759234679465,5.48520227,207.04,207.03,13.59559401]
[1759234679973,10.31518681,207.04,207.03,13.59559401]
[1759234680174,7.07308491,207.04,206.97,18.42721211]
[1759234680374,2.24310037,207.0,206.99,13.59559401]
[1759234680582,2.24310037,207.0,206.99,14.30559401]
[1759234680778,2.24310037,207.0,206.97,0.71]
[1759234680983,20.1470478,207.04,206.98,13.59559401]
[1759234680984,5.49651049,207.02,206.98,13.59559401]
[1759234681197,5.49651049,207.02,206.93,0.71]
[1759234681198,2.42310037,206.99,206.93,0.71]
[1759234681483,2.24310037,206.94,206.93,0.71]
[1759234681669,0.18,206.99,206.94,13.59559401]
[1759234681875,3.43267319,206.98,206.91,14.30559401]
[1759234682080,3.25267319,206.97,206.91,14.30559401]
[1759234682463,24.23267319,206.96,206.9,13.59559401]
[1759234682663,3.43267319,206.95,206.9,13.59559401]
[1759234682868,2.24310037,206.91,206.88,13.59559401]
[1759234683112,3.43267319,206.94,206.88,13.59559401]
[1759234683113,2.24310037,206.89,206.88,14.30559401]
[1759234684587,2.24310037,206.89,206.88,13.59559401]
[1759234684787,7.07658676,206.89,206.86,13.59559401]
[1759234684980,2.24310037,206.87,206.85,0.1]
[1759234685178,5.01348639,206.89,206.85,0.1]
[1759234685179,2.24310037,206.86,206.85,0.1]
[1759234687176,20.8,206.91,206.86,13.59559401]
[1759234687386,20.8,206.91,206.88,13.59559401]
[1759234687387,2.24310037,206.89,206.88,13.59559401]
[1759234687575,2.24310037,206.89,206.88,14.30559401]
[1759234691997,2.24310037,206.89,206.88,13.59559401]
[1759234692604,85.13306336,206.91,206.88,13.59559401]
[1759234692803,2.24310037,206.89,206.88,13.59559401]
[1759234695125,4.83185716,206.96,206.89,13.59559401]
[1759234695314,2.24310037,206.92,206.91,13.59559401]
[1759234695511,2.24310037,206.92,206.91,14.28559401]
[1759234696922,2.24310037,206.92,206.87,4.83379127]
[1759234697127,4.83260269,206.93,206.91,0.71]
[1759234697425,2.24310037,206.92,206.91,0.71]
[1759234697607,2.24310037,206.92,206.88,13.59559401]
[1759234697812,2.24310037,206.89,206.85,5.64426774]
[1759234698015,2.24310037,206.86,206.85,18.52986175]
[1759234698614,2.24310037,206.86,206.85,19.23986175]
[1759234700231,2.24310037,206.87,206.85,19.23986175]
[1759234700431,2.24310037,206.87,206.85,18.52986175]
[1759234700627,2.24310037,206.87,206.86,0.71]
[1759234702030,2.24310037,206.87,206.85,0.1]
[1759234702229,2.24310037,206.86,206.85,0.1]
[1759234702841,2.24310037,206.86,206.85,13.69559401]
[1759234704121,2.24310037,206.86,206.85,0.81]
[1759234704622,2.24310037,206.86,206.85,14.40559401]
[1759234706659,4.83325277,206.9,206.85,14.40559401]
[1759234706839,2.24310037,206.86,206.85,14.40559401]
[1759234710343,2.24310037,206.86,206.85,19.24001508]
[1759234710657,80.3,206.89,206.86,13.59559401]
[1759234710852,80.3,206.89,206.87,0.71]
[1759234711760,2.24310037,206.88,206.87,0.71]
[1759234712332,2.24310037,206.88,206.86,13.59559401]
[1759234712529,2.24310037,206.87,206.86,14.30559401]
[1759234714455,2.24310037,206.87,206.85,0.1]
[1759234714661,2.24310037,206.86,206.85,0.81]
[1759234718373,1.43843497,206.86,206.85,0.81]
[1759234722377,1.43843497,206.86,206.85,19.24001508]
[1759234722556,1.43843497,206.86,206.85,5.64442107]
[1759234723373,4.69048834,206.86,206.85,5.64442107]
[1759234727560,4.69048834,206.86,206.85,14.40559401]
[1759234730270,4.69048834,206.86,206.85,19.24001508]
[1759234731090,4.69048834,206.86,206.85,13.69559401]
[1759234732480,4.69048834,206.86,206.85,14.35559401]
[1759234735198,3.25205337,206.86,206.85,14.35559401]
[1759234735379,4.69048834,206.86,206.85,14.35559401]
[1759234738507,3.25205337,206.86,206.85,19.19001508]
[1759234742223,3.25205337,206.86,206.85,14.35559401]
[1759234742513,4.69048834,206.86,206.85,13.69559401]
[1759234744310,9.52467571,206.86,206.85,13.69559401]
[1759234744514,9.52467571,206.86,206.85,0.1]
[1759234745089,4.69048834,206.86,206.85,0.1]
[1759234745420,4.69048834,206.86,206.85,0.76]
[1759234746523,4.69048834,206.86,206.85,0.1]
[1759234747416,9.52467571,206.86,206.85,0.1]
[1759234747600,4.69048834,206.86,206.85,0.1]
[1759234749218,4.69048834,206.86,206.85,14.35559401]
[1759234749515,4.69048834,206.86,206.85,19.19001508]
[1759234752607,3.25205337,206.86,206.85,19.19001508]
[1759234757836,4.69048834,206.86,206.85,13.69559401]
[1759234758030,9.52467571,206.86,206.85,13.69559401]
[1759234759614,9.52467571,206.86,206.85,0.1]
[1759234766870,9.70467571,206.86,206.85,0.1]
[1759234767057,13.76553044,206.86,206.85,0.1]
[1759234767360,23.30026972,206.86,206.85,0.1]
[1759234767968,27.36112445,206.86,206.85,0.1]
[1759234770053,20.90850211,206.86,206.85,0.1]
[1759234770255,20.90850211,206.86,206.85,0.82]
[1759234770256,18.28608235,206.86,206.85,0.82]
[1759234770457,23.12026972,206.86,206.85,0.82]
[1759234771169,3.25205337,206.86,206.85,14.41559401]
[1759234771379,4.69048834,206.86,206.85,14.41559401]
[1759234771567,9.52467571,206.86,206.85,0.1]
[1759234772567,9.52467571,206.86,206.85,0.82]
[1759234772568,4.69048834,206.86,206.85,0.82]
[1759234773669,3.25205337,206.86,206.85,0.82]
[1759234773882,3.25205337,206.86,206.85,14.41559401]
[1759234774177,3.25205337,206.86,206.85,19.25001508]
[1759234777454,14.54087196,206.9,206.85,19.25001508]
[1759234777455,14.54087196,206.9,206.86,13.59559401]
[1759234777660,3.26139163,206.89,206.86,14.31559401]
[1759234777877,3.26139163,206.88,206.87,14.31559401]
[1759234778386,4.06085473,206.94,206.89,18.4290804]
[1759234778576,3.26070251,206.93,206.91,13.59559401]
[1759234778771,3.26070251,206.92,206.91,13.59559401]
[1759234779272,3.26070251,206.92,206.91,14.31559401]
[1759234780570,3.26070251,206.92,206.91,19.14861319]
[1759234783292,7.07747818,206.97,206.91,19.14861319]
[1759234783498,0.67,207.06,206.96,13.59559401]
[1759234783664,0.67,207.06,206.95,20.8]
[1759234783665,0.67,207.06,206.98,13.59559401]
[1759234784467,2.24582784,207.08,207.0,13.59559401]
[1759234784796,0.87,207.13,207.02,13.59559401]
[1759234784982,0.87,207.13,207.04,13.59559401]
[1759234785179,0.87,207.13,207.06,13.59559401]
[1759234785382,0.87,207.13,207.08,13.59559401]
[1759234785693,0.67,207.12,207.08,13.59559401]
[1759234785992,0.67,207.11,207.08,13.59559401]
[1759234786583,0.87,207.13,207.08,13.59559401]
[1759234786784,0.67,207.12,207.08,13.59559401]
[1759234787489,0.2,207.13,207.1,13.59559401]
[1759234789477,0.2,207.13,207.12,13.59559401]
[1759234792300,0.2,207.13,207.12,52.48371297]
[1759234793907,0.2,207.13,207.12,54.41958713]
[1759234794981,1e-08,207.13,207.12,20.35958713]
[1759234795210,1e-08,207.13,207.12,54.39958713]
[1759234796394,1e-08,207.13,207.12,54.37958713]
[1759234800511,0.2,207.18,207.16,13.59559401]
[1759234800716,0.2,207.18,207.17,68.39559401]
[1759234801604,0.2,207.18,207.17,70.33081256]
[1759234801779,0.2,207.18,207.17,36.33081256]
[1759234801979,0.2,207.18,207.17,49.55081256]
[1759234801980,0.87,207.18,207.17,49.55081256]
[1759234802183,0.87,207.18,207.17,54.37776626]
[1759234802384,0.2,207.18,207.17,54.37776626]
[1759234803691,0.2,207.19,207.18,13.59559401]
[1759234804410,0.2,207.21,207.2,34.39559401]
[1759234804607,0.2,207.21,207.2,68.41559401]
[1759234805409,0.2,207.21,207.2,70.35025097]
[1759234805711,0.2,207.21,207.2,36.33025097]
[1759234806011,0.2,207.21,207.2,70.49025097]
[1759234806610,0.2,207.23,207.21,13.59559401]
[1759234806916,1e-08,207.23,207.22,13.59559401]
[1759234807206,1e-08,207.23,207.22,49.6901574]
[1759234807514,0.2,207.26,207.22,49.6901574]
[1759234807515,1e-08,207.24,207.23,34.39559401]
[1759234808791,1e-08,207.24,207.23,39.22115015]
[1759234810006,1e-08,207.24,207.23,73.36115015]
[1759234810242,1e-08,207.24,207.23,39.22115015]
[1759234810395,1e-08,207.24,207.23,73.36115015]
[1759234811391,0.2,207.29,207.23,73.36115015]
[1759234811392,0.2,207.29,207.27,13.59559401]
[1759234811699,0.2,207.29,207.28,47.71559401]
[1759234812508,0.91,207.29,207.28,49.64987675]
[1759234813016,0.91,207.29,207.28,54.47426887]
[1759234814526,0.91,207.29,207.28,20.35426887]
[1759234814701,0.91,207.29,207.28,54.45426887]
[1759234814901,0.91,207.29,207.28,68.71428603]
[1759234815320,0.2,207.29,207.28,68.71428603]
[1759234815794,0.91,207.29,207.28,68.71428603]
[1759234817830,0.2,207.29,207.28,68.71428603]
[1759234820814,1e-08,207.29,207.28,68.71428603]
[1759234821321,1e-08,207.29,207.28,34.61428603]
[1759234821531,1e-08,207.29,207.28,68.67428603]
[1759234821723,0.2,207.32,207.31,13.59559401]
[1759234821943,0.2,207.32,207.31,47.65559401]
[1759234822527,0.2,207.32,207.31,49.58940918]
[1759234823118,1e-08,207.32,207.31,49.58940918]
[1759234823339,0.66,207.38,207.33,34.39559401]
[1759234823501,0.66,207.38,207.34,47.65559401]
[1759234823924,0.66,207.35,207.34,13.59559401]
[1759234824141,0.66,207.35,207.34,47.67559401]
[1759234824917,0.66,207.35,207.31,4.82369398]
[1759234825104,0.2,207.36,207.34,4.82164874]
[1759234825308,0.2,207.36,207.35,47.67559401]
[1759234825528,0.2,207.36,207.35,13.59559401]
[1759234825742,2.44582784,207.36,207.35,47.67559401]
[1759234826332,3.10582784,207.36,207.35,47.67559401]
[1759234826836,3.10582784,207.36,207.35,13.59559401]
[1759234827013,3.10582784,207.36,207.35,47.67559401]
[1759234827921,3.10582784,207.36,207.35,13.59559401]
[1759234828127,3.10582784,207.36,207.35,47.67559401]
[1759234829534,0.86,207.36,207.35,47.67559401]
[1759234830036,3.10582784,207.36,207.35,47.65559401]
[1759234831205,0.86,207.36,207.35,47.65559401]
[1759234831435,3.10582784,207.36,207.35,47.65559401]
[1759234831639,7.9283587,207.36,207.35,13.59559401]
[1759234831836,19.98468586,207.36,207.31,34.06]
[1759234832014,0.66,207.35,207.32,12.87559401]
[1759234832217,2.24582784,207.33,207.21,35.44]
[1759234832544,2.24582784,207.29,207.22,34.06]
[1759234832785,0.66,207.29,207.25,20.8]
[1759234832958,2.24582784,207.3,207.26,34.08]
[1759234833153,0.66,207.28,207.27,4.82462488]
[1759234833652,0.66,207.28,207.26,34.08]
[1759234833827,0.66,207.27,207.26,34.08]
[1759234834039,0.66,207.27,207.26,47.67559401]
[1759234834419,0.66,207.27,207.26,52.50045167]
[1759234834623,2.90582784,207.29,207.27,13.59559401]
[1759234834831,2.24582784,207.29,207.28,34.06]
[1759234835432,2.90582784,207.29,207.28,34.06]
[1759234835949,2.90582784,207.29,207.24,14.56148146]
[1759234836152,2.24582784,207.26,207.25,47.65559401]
[1759234836361,2.90582784,207.26,207.25,47.65559401]
[1759234836854,0.66,207.26,207.25,47.65559401]
[1759234837959,7.7306855,207.26,207.25,13.59559401]
[1759234838164,7.7306855,207.26,207.22,34.06]
[1759234838460,2.24582784,207.23,207.22,47.65559401]
[1759234838753,2.90582784,207.23,207.22,47.65559401]
[1759234839648,0.66,207.23,207.22,47.65559401]
[1759234839850,0.66,207.26,207.23,13.59559401]
[1759234840048,0.66,207.26,207.25,13.59559401]
[1759234840358,1.43270689,207.27,207.25,13.59559401]
[1759234840733,0.66,207.26,207.25,13.59559401]
[1759234840945,6.91756455,207.26,207.21,13.59559401]
[1759234841150,1.43270689,207.24,207.23,13.59559401]
[1759234841355,2.09270689,207.24,207.23,13.59559401]
[1759234842061,0.66,207.24,207.23,13.59559401]
[1759234842278,2.15270689,207.27,207.23,13.59559401]
[1759234842552,0.72,207.26,207.25,13.59559401]
[1759234843328,1.43270689,207.27,207.25,13.59559401]
[1759234843530,2.15270689,207.27,207.25,13.59559401]
[1759234844358,2.15270689,207.26,207.25,13.59559401]
[1759234844853,2.15270689,207.26,207.21,13.59559401]
[1759234845157,2.15270689,207.25,207.23,13.59559401]
[1759234845463,1.43270689,207.25,207.24,34.04]
[1759234845827,2.15270689,207.25,207.24,34.04]
[1759234847057,6.9778743,207.25,207.23,34.04]
[1759234847235,2.15270689,207.24,207.23,47.63559401]
[1759234847435,2.15270689,207.24,207.23,13.59559401]
[1759234848436,82.45270689,207.24,207.1,4.82858522]
[1759234848645,1.43270689,207.18,207.15,13.59559401]
[1759234848849,0.72,207.17,207.12,13.59559401]
[1759234849041,1.43270689,207.18,207.16,13.59559401]
[1759234849256,2.15270689,207.18,207.16,47.65559401]
[1759234849453,0.72,207.22,207.16,53.15273267]
[1759234849661,2.15270689,207.22,207.17,13.59559401]
[1759234849865,80.3,207.23,207.19,13.59559401]
[1759234850073,2.15270689,207.23,207.2,34.06]
[1759234850940,1.43270689,207.23,207.2,34.06]
[1759234851142,22.23270689,207.27,207.22,13.59559401]
[1759234851454,1.43270689,207.28,207.24,13.59559401]
[1759234851664,2.15270689,207.28,207.24,13.59559401]
[1759234852275,0.72,207.28,207.24,13.59559401]
[1759234852473,0.72,207.31,207.26,13.59559401]
[1759234852769,0.72,207.31,207.26,48.34559401]
[1759234852770,2.15270689,207.31,207.26,48.34559401]
[1759234853267,2.15270689,207.31,207.27,4.82462488]
[1759234853841,2.15270689,207.3,207.26,52.50041991]
[1759234854044,0.72,207.29,207.26,52.50041991]
[1759234854452,2.15270689,207.29,207.26,52.50041991]
[1759234855164,2.15270689,207.29,207.26,18.42041991]
[1759234855366,2.15270689,207.29,207.26,52.50041991]
[1759234855668,0.72,207.29,207.26,52.50041991]
[1759234856366,0.72,207.29,207.26,47.67559401]
[1759234856551,2.15270689,207.28,207.27,13.59559401]
[1759234856874,1.43270689,207.29,207.27,13.59559401]
[1759234857071,2.15270689,207.29,207.27,13.59559401]
[1759234858049,2.15270689,207.29,207.24,47.65559401]
[1759234858050,2.15270689,207.28,207.24,47.65559401]
[1759234858255,1.43270689,207.25,207.24,47.65559401]
[1759234859044,1.43270689,207.28,207.24,48.32559401]
[1759234859468,2.15270689,207.28,207.24,47.65559401]
[1759234860173,1.43270689,207.28,207.26,13.59559401]
[1759234860762,0.72,207.3,207.26,13.59559401]
[1759234860962,1.43270689,207.29,207.26,13.59559401]
[1759234861456,1.43270689,207.28,207.26,13.59559401]
[1759234862277,1.43270689,207.28,207.26,18.42043951]
[1759234862853,1.43270689,207.28,207.26,13.59559401]
[1759234864383,0.72,207.3,207.26,18.42042282]
[1759234864566,1.43270689,207.28,207.26,18.42042282]
[1759234865456,25.6234733,207.32,207.26,18.42042282]
[1759234865776,25.6234733,207.32,207.27,0.67]
[1759234865777,1.43270689,207.31,207.27,0.67]
[1759234865969,80.3,207.35,207.26,18.42042282]
[1759234865970,5.54287494,207.35,207.29,13.59559401]
[1759234866285,1.43270689,207.33,207.29,13.59559401]
[1759234866460,1.43270689,207.33,207.29,14.26559401]
[1759234866856,1.43270689,207.3,207.28,13.59559401]
[1759234867060,2.15270689,207.3,207.28,47.63559401]
[1759234867273,1.43270689,207.29,207.28,47.63559401]
[1759234867474,1.43270689,207.29,207.27,18.42001571]
[1759234867675,1.43270689,207.29,207.27,52.46001571]
[1759234868776,1.43270689,207.3,207.27,52.46001571]
[1759234869078,3.2419927,207.35,207.31,13.59559401]
[1759234869264,1.63270689,207.36,207.33,13.59559401]